[Event "Chinese League Div-A Rapid 2022"]
[Site "Fuling,Chongqing"]
[Date "2022.09.18"]
[Round "10.9"]
[White "Bai, Xue"]
[Black "Hu, Yu A."]
[Result "0-1"]
[ECO "B33"]
[WhiteElo "2123"]
[BlackElo "2074"]
[Annotator "TA"]
[PlyCount "126"]
[EventDate "2022.09.07"]
[EventType "team-tourn"]
[EventCountry "CHN"]
[SourceTitle "playchess.com"]
[Source "ChessBase"]
[SourceQuality "1"]
[TimeControl "1500+10"]

{[%evp 28,126,25,25,20,23,0,-14,-15,-15,-15,-5,-18,-21,-21,-31,-13,-138,-132,-105,-126,-271,-265,-261,-256,-252,-176,-134,-62,-62,-62,-92,-20,-21,-8,-32,0,0,0,0,0,0,0,0,0,-42,-36,-81,-81,-81,-81,-81,-81,-847,-847,-804,-793,-937,-334,-933,-737,-838,-724,-5925,-5816,-4627,-2966,-29954,-29955,-29952,-29952,-29977,-29978,-29974,-29974,-29980,-29980,-29992,-29986,-29984,-29977,-29989,-29978,-29978,-29979,-29979,-29980,-29980,-29980,-29981,-29981,-29983,-29984,-29984,-29985,-29985,-29984,-29984,-29985,-29983,-29984]} 1. e4 {[%emt 0:00:03]} c5 {[%emt 0:00:01]} 2. Nf3 {[%emt 0:00:02]} Nc6 {[%emt 0:00:02]} 3. d4 {[%emt 0:00:01]} cxd4 {[%emt 0:00:03]} 4. Nxd4 {[%emt 0:00:03]} Nf6 {[%emt 0:00:02]} 5. Nc3 {[%emt 0:00:02]} e5 {[%emt 0:00:02]} 6. Ndb5 {[%emt 0:00:07]} d6 {[%emt 0:00:02]} 7. Bg5 {[%emt 0:00:03]} a6 {[%emt 0:00:02]} 8. Na3 {[%emt 0:00:02]} b5 {[%emt 0:00:02]} 9. Nd5 {[%emt 0:00:03]} Be7 {[%emt 0:00:02]} 10. Bxf6 {[%emt 0:00:03]} Bxf6 {[%emt 0:00:02]} 11. c3 {[%emt 0:00:07]} Bg5 {[%emt 0:00:03]} 12. Nc2 {[%emt 0:00:08]} Rb8 {[%emt 0:00:02]} 13. a4 {[%emt 0:01:16]} bxa4 {[%emt 0:00:02]} 14. Ncb4 {[%emt 0:00:06]} Nxb4 {[%emt 0:00:05]} 15. Nxb4 {[%emt 0:00:11] Threatens to win with Nc6.} Bd7 {[%emt 0:00:13] Prevents Nc6. Strongly threatening ...a5. B33: Sicilian: Pelikan and Sveshnikov Variations.} 16. Bxa6 {[%emt 0:00:11]} ({Of course not} 16. Qxd6 Be7 17. Qxe5 O-O 18. Bxa6 Bxb4 19. cxb4 Qb6 $17) 16... Qa5 {[%emt 0:00:26] White must now prevent ...Rxb4.} 17. Qd5 {[%emt 0:03:18]} Qxd5 {[%emt 0:01:49] The position is equal.} 18. exd5 {[%emt 0:00:15]} O-O {[%emt 0:01:01]} 19. O-O {[%emt 0:00:12]} e4 {[%emt 0:06:35] [#]} 20. Rfe1 $146 {[%emt 0:01:18]} ({Predecessor:} 20. Be2 Ra8 21. Ra3 Ra5 22. Bd1 Bb5 23. Re1 Re8 24. Be2 Bxe2 25. Rxe2 f5 26. g3 {0-1 (67) Cenal Gutierrez,R (2216)-Buchicchio,G (2296) England 2015}) 20... f5 {[%emt 0:00:04]} 21. Re2 {[%emt 0:01:17]} Rb6 {[%emt 0:00:19][%cal Ob6a6] Inhibits Nc6. Black wants to play ...Rxa6!} 22. g3 {[%emt 0:05:06] [#]} (22. Bc4 $11) 22... Rxa6 $1 $17 {[%emt 0:02:43][%mdl 512]} 23. Nxa6 {[%emt 0:00:08]} Bb5 $1 {[%emt 0:00:01][%csl LRa6,LRe2]} 24. Ree1 {[%emt 0:00:07]} (24. Rc2 $17 Bxa6 25. c4) 24... Bxa6 $19 {[%emt 0:00:02]} 25. Rxa4 {[%emt 0:00:03]} Bd3 {[%emt 0:00:23]} 26. Rea1 {[%emt 0:02:34]} e3 {[%emt 0:05:23]} 27. h4 {[%emt 0:02:40]} Bh6 {[%emt 0:00:35]} (27... exf2+ $17 28. Kxf2 Bf6) 28. f4 $1 $15 {[%emt 0:01:31]} g6 {[%emt 0:01:17] Black is more active.} 29. Ra7 {[%emt 0:01:39]} Re8 {[%emt 0:02:23]} (29... Bc4 $17 30. Re7 Bxd5 31. Rxe3 Be4) 30. Ra8 $1 $11 {[%emt 0:00:04]} Rxa8 {[%emt 0:01:52]} 31. Rxa8+ {[%emt 0:00:01]} Kf7 {[%emt 0:00:01]} 32. Ra7+ {[%emt 0:00:03]} Kf6 {[%emt 0:00:19]} 33. Kg2 {[%emt 0:00:53]} Bf8 {[%emt 0:00:30]} 34. Kf3 {[%emt 0:00:19]} e2 {[%emt 0:00:01]} 35. Kf2 {[%emt 0:00:02]} Be7 {[%emt 0:01:07]} 36. Ra8 {[%emt 0:00:19]} h6 {[%emt 0:00:43][%cal Bh7h6,Bh6g5][%mdl 32]} 37. Rh8 {[%emt 0:00:53]} Kg7 {[%emt 0:00:06] Black converts the advantage convincingly.} 38. Ra8 {[%emt 0:00:52]} g5 {[%emt 0:00:13]} 39. Ra7 {[%emt 0:00:07]} Kf8 {[%emt 0:00:03]} 40. fxg5 {[%emt 0:00:31][%mdl 8192]} (40. hxg5 $17 hxg5 41. Ra8+ Kf7 42. Ra7) 40... hxg5 $19 {[%emt 0:00:07]} 41. h5 {[%emt 0:00:12]} Bf6 {[%emt 0:00:10] And now ...Be5 would win.} 42. h6 {[%emt 0:01:43]} Kg8 $2 {[%emt 0:00:01]} (42... Be5 {[%cal Oe5g3] ( -> ...Bxg3+!)} 43. Ra1 Kg8) 43. Ra1 $2 {[%emt 0:00:49]} (43. Rd7 Be5 44. Re7) 43... Kh7 {[%emt 0:00:14]} 44. Ke3 {[%emt 0:00:23]} Bb5 {[%emt 0:00:02] aiming for ...Be5.} 45. Kd2 {[%emt 0:00:39]} Be5 {[%emt 0:00:02]} 46. Rg1 {[%emt 0:00:08]} f4 {[%emt 0:00:14] ...Bc4 is the strong threat.} 47. gxf4 {[%emt 0:01:12]} gxf4 {[%emt 0:00:01] Black mates.} 48. Ke1 {[%emt 0:00:23]} f3 {[%emt 0:01:08]} 49. Rg4 {[%emt 0:00:16]} Kxh6 {[%emt 0:00:23]} 50. Kf2 {[%emt 0:00:10]} Kh5 {[%emt 0:00:29]} 51. Re4 {[%emt 0:00:50]} Bd3 {[%emt 0:00:33]} 52. Ra4 {[%emt 0:00:12]} Bf6 {[%emt 0:00:19]} 53. Ra1 {[%emt 0:00:09]} Bh4+ {[%emt 0:00:14]} 54. Ke3 {[%emt 0:00:05]} Bc4 {[%emt 0:00:17]} 55. Kxf3 {[%emt 0:00:16]} e1=Q {[%emt 0:00:02]} 56. Rxe1 {[%emt 0:00:04]} Bxe1 {[%emt 0:00:01]} 57. Ke4 {[%emt 0:00:02]} Kg5 {[%emt 0:00:07]} 58. Kd4 {[%emt 0:00:01]} Bb3 {[%emt 0:00:09]} 59. c4 {[%emt 0:00:02]} Bb4 {[%emt 0:00:14]} 60. Kd3 {[%emt 0:00:03]} Kf4 {[%emt 0:00:05]} 61. Kd4 {[%emt 0:00:03]} Kf3 {[%emt 0:00:22]} 62. Kd3 {[%emt 0:00:03]} Kf2 {[%emt 0:00:06]} 63. Kd4 {[%emt 0:00:02]} Ke2 {[%emt 0:00:02] Weighted Error Value: White=0.63/Black=0.23 (precise)} 0-1

[Event "Chinese League Div-A Rapid 2022"]
[Site "Fuling,Chongqing"]
[Date "2022.09.18"]
[Round "10.10"]
[White "Qiu, Mengjie"]
[Black "Gu, Xiaobing"]
[Result "0-1"]
[ECO "B51"]
[WhiteElo "2149"]
[BlackElo "2219"]
[Annotator "TA"]
[PlyCount "126"]
[EventDate "2022.09.07"]
[EventType "team-tourn"]
[EventCountry "CHN"]
[SourceTitle "playchess.com"]
[Source "ChessBase"]
[SourceQuality "1"]
[TimeControl "1500+10"]

{[%evp 10,126,9,0,0,0,8,2,25,0,0,-12,0,-29,-34,-29,-12,-19,-23,-20,-18,-32,-32,-63,-10,-31,-25,-25,0,0,21,-8,37,0,19,19,12,0,29,55,41,15,24,18,25,26,24,27,26,0,0,0,0,7,11,-53,-22,-191,-182,-494,-482,-482,-305,-454,-411,-718,-756,-758,-758,-762,-764,-749,-722,-854,-531,-538,-538,-538,-538,-523,-508,-527,-471,-643,-658,-635,-554,-614,-531,-551,-551,-621,-641,-637,-612,-656,-659,-611,-660,-624,-636,-666,-647,-622,-597,-5818,-6106,-29940,-5818,-29978,-29976,-29981,-29982,-29983,-29982,-29982,-29981,-29985,-29986]} 1. e4 {[%emt 0:00:03]} c5 {[%emt 0:00:01]} 2. Nf3 {[%emt 0:00:02]} d6 {[%emt 0:00:02]} 3. Bb5+ {[%emt 0:00:03]} Nd7 {[%emt 0:00:17]} 4. O-O {[%emt 0:00:13]} a6 {[%emt 0:00:09]} 5. Bxd7+ {[%emt 0:00:41]} Bxd7 {[%emt 0:00:02]} 6. c3 {[%emt 0:00:02]} Nf6 {[%emt 0:00:33] B51: Sicilian: Moscow Variation (3 Bb5+) without 3...Bd7.} 7. Re1 {[%emt 0:00:02]} Bg4 {[%emt 0:01:19][%cal Bd7g4,Bg4h5,Bh5g6,Bg6h7][%mdl 32]} 8. d4 {[%emt 0:00:25]} e6 {[%emt 0:00:59] The position is equal.} 9. Nbd2 {[%emt 0:00:56]} (9. h3 $5 {[%cal Rh3g4]} Bh5 10. Bg5 $11) 9... Be7 {[%emt 0:01:09]} 10. h3 {[%emt 0:00:03]} Bh5 {[%emt 0:00:03]} 11. Nf1 {[%emt 0:00:14] [#]} cxd4 $146 {[%emt 0:00:56]} ({Predecessor:} 11... h6 12. Ng3 Bg6 13. Qb3 Qc7 14. Bf4 b5 15. dxc5 Qxc5 16. e5 Nd5 17. exd6 Bxd6 18. Bxd6 Qxd6 {0-1 (68) Aldrich,J (1631)-De Mott,K (1405) Kalamazoo 2002}) 12. cxd4 {[%emt 0:00:06]} O-O {[%emt 0:01:26]} (12... d5 $5 {[%cal Rd5e4]} 13. e5 Ne4 $11) 13. Ng3 {[%emt 0:00:03]} Bg6 {[%emt 0:00:01]} 14. Bg5 {[%emt 0:06:17]} h6 {[%emt 0:00:06]} 15. Bxf6 {[%emt 0:00:56]} Bxf6 {[%emt 0:00:04]} 16. e5 {[%emt 0:00:08]} Be7 {[%emt 0:00:43]} ({Black should try} 16... dxe5 $15 17. Nxe5 Bxe5 18. dxe5 Qb6) 17. exd6 {[%emt 0:01:47]} Qxd6 {[%emt 0:00:17]} 18. Ne5 {[%emt 0:00:21]} Bh7 {[%emt 0:00:22]} 19. Qg4 {[%emt 0:00:23]} f5 {[%emt 0:01:13]} 20. Qe2 {[%emt 0:02:40]} Rae8 {[%emt 0:04:02]} ({But not} 20... Qxd4 21. Rad1 (21. Nf3 Qb6 $11) 21... Qb4 22. Nd7 $16) 21. Nc4 {[%emt 0:02:12][%csl LRd6,LRe6]} Qd5 {[%emt 0:03:38]} 22. Qxe6+ {[%emt 0:00:06]} Qxe6 {[%emt 0:00:01]} 23. Rxe6 {[%emt 0:00:01] Hoping for Rae1.} Bf6 {[%emt 0:01:20]} (23... f4 $5 {[%cal Rf4g3]} 24. Ne4 b5 $11) 24. Rxe8 {[%emt 0:01:20]} Rxe8 {[%emt 0:00:02]} 25. Rd1 {[%emt 0:02:19]} (25. Nd6 $5 {[%cal Rd6e8]} Rd8 26. Ngxf5 $14) 25... f4 {[%emt 0:00:19]} 26. Nh5 {[%emt 0:00:21]} Bg5 {[%emt 0:00:02]} 27. h4 {[%emt 0:00:31]} Bxh4 {[%emt 0:00:10]} 28. Nxf4 {[%emt 0:00:01]} Bg5 {[%emt 0:00:27]} 29. Nd3 {[%emt 0:00:51]} Rd8 {[%emt 0:01:20]} 30. Nc5 {[%emt 0:02:24]} Bc2 {[%emt 0:00:07][%mdl 64] [#] Deflection} 31. Re1 {[%emt 0:00:31]} Rxd4 {[%emt 0:00:11]} 32. Na3 {[%emt 0:00:38]} (32. b3 $11) 32... Bg6 {[%emt 0:02:12]} (32... Bf5 $5 {[%cal Rd4d2]}) 33. Re6 $2 {[%emt 0:00:11] This move loses the game for White.} (33. Ne6 $11 {and White is okay.} Bd2 34. Rd1) 33... Bf7 {[%emt 0:00:17]} 34. Rb6 $2 {[%emt 0:00:02]} (34. Re1 {is more resistant.}) 34... Rd1+ $19 {[%emt 0:00:27]} 35. Kh2 {[%emt 0:00:03]} Bd5 {[%emt 0:00:04] Against Ne4. ( -> ...Bf4+)} 36. Kg3 {[%emt 0:00:57] Against Bf4+} (36. Ne6 $142 Bf6 37. Nc2) 36... Bd8 {[%emt 0:00:11] This bishop pair is nice.} 37. Rg6 {[%emt 0:00:37]} (37. Rxb7 $142 Bxb7 38. Nxb7) 37... Bc7+ {[%emt 0:01:22]} 38. f4 {[%emt 0:00:01]} Kh7 {[%emt 0:00:07]} 39. Rg4 {[%emt 0:00:15]} g5 {[%emt 0:00:05]} 40. Kf2 {[%emt 0:01:17]} Bxf4 {[%emt 0:00:20]} 41. Ke2 {[%emt 0:00:36]} Rh1 {[%emt 0:01:23] aiming for ...h5.} 42. Nd3 {[%emt 0:00:16]} Be6 {[%emt 0:00:26]} 43. Rxf4 {[%emt 0:00:10]} gxf4 {[%emt 0:00:02]} 44. Nxf4 {[%emt 0:00:02]} Bxa2 {[%emt 0:00:03][%mdl 4096] Endgame KRB-KNN} 45. Kd2 {[%emt 0:00:36]} Rh4 {[%emt 0:00:19]} 46. g3 {[%emt 0:00:22]} Rg4 {[%emt 0:00:01]} 47. Ne2 {[%emt 0:00:04]} Kg6 {[%emt 0:00:19]} 48. Kc3 {[%emt 0:00:24]} Be6 {[%emt 0:00:39]} 49. Nc2 {[%emt 0:00:17]} Bd7 {[%emt 0:00:27] And now ...Bb5 would win.} 50. Ncd4 {[%emt 0:00:22]} Re4 {[%emt 0:00:14]} 51. Kd3 {[%emt 0:00:06]} Re8 {[%emt 0:00:02]} 52. Nf4+ {[%emt 0:00:12]} Kg5 {[%emt 0:00:07]} 53. Nd5 {[%emt 0:00:03]} Bf5+ {[%emt 0:00:12]} 54. Kc3 {[%emt 0:00:17]} Rc8+ {[%emt 0:00:15]} 55. Kb4 {[%emt 0:00:06]} Bh3 {[%emt 0:01:49]} 56. Ne3 {[%emt 0:00:21]} Re8 {[%emt 0:00:09]} 57. Ndc2 {[%emt 0:00:06]} Bf5 {[%emt 0:00:06] ...Bxc2 is the strong threat.} 58. Ka5 {[%emt 0:00:13]} Bxc2 {[%emt 0:00:03]} (58... Re5+ $142 59. Kb4 Bxc2 60. Nxc2 Kg4 61. Kc3 Kxg3 62. Na3 h5 63. Nc4 Rb5 64. Nd6 h4 65. Nc4 Kf3 66. Nd6 h3 67. Kd4 h2 68. Nxb5 axb5 69. Kc5 h1=Q 70. Kb6 Qh6+ 71. Kc7 Qc6+ 72. Kb8 Ke4 73. Ka7 Ke5 74. Kb8 Kd6 75. b3 Qa6 76. b4 Kc6 77. Kc8 Qa8#) 59. Nxc2 {[%emt 0:00:01]} Re5+ {[%emt 0:00:04] Black mates.} 60. Kb4 {[%emt 0:00:05]} Kg4 {[%emt 0:00:05]} 61. Kc3 {[%emt 0:00:06]} Kxg3 {[%emt 0:00:02]} 62. Kd4 {[%emt 0:00:02]} Re2 {[%emt 0:00:06]} 63. Kd3 {[%emt 0:00:01] [#]} Rxc2 $1 {[%emt 0:00:04] Weighted Error Value: White=0.45/Black=0.28 (precise)} 0-1

[Event "Chinese League Div-A Rapid 2022"]
[Site "Fuling,Chongqing"]
[Date "2022.09.18"]
[Round "10.11"]
[White "Xiao, Tong"]
[Black "Lin, Chen"]
[Result "1/2-1/2"]
[ECO "B19"]
[WhiteElo "2027"]
[BlackElo "2485"]
[Annotator "ChessBase"]
[PlyCount "79"]
[EventDate "2022.09.07"]
[EventType "team-tourn"]
[EventCountry "CHN"]
[SourceTitle "playchess.com"]
[Source "ChessBase"]
[SourceQuality "1"]
[TimeControl "1500+10"]

1. e4 {[%emt 0:00:02]} c6 {[%emt 0:00:02]} 2. d4 {[%emt 0:00:13]} d5 {[%emt 0:00:02]} 3. Nc3 {[%emt 0:00:11]} dxe4 {[%emt 0:00:03]} 4. Nxe4 {[%emt 0:00:02]} Bf5 {[%emt 0:00:03]} 5. Ng3 {[%emt 0:00:02]} Bg6 {[%emt 0:00:01]} 6. Nf3 {[%emt 0:00:19]} Nd7 {[%emt 0:00:03]} 7. h4 {[%emt 0:00:19]} h6 {[%emt 0:00:02]} 8. Bd3 {[%emt 0:00:06]} Bxd3 {[%emt 0:00:08]} 9. Qxd3 {[%emt 0:00:02]} e6 {[%emt 0:00:11]} 10. Bf4 {[%emt 0:00:10]} Ngf6 {[%emt 0:00:43]} 11. O-O-O {[%emt 0:00:04]} Be7 {[%emt 0:00:02]} 12. Kb1 {[%emt 0:00:32]} O-O {[%emt 0:00:03]} 13. Ne4 {[%emt 0:00:02]} Nxe4 {[%emt 0:00:09]} 14. Qxe4 {[%emt 0:00:02]} Nf6 {[%emt 0:00:22]} 15. Qe2 {[%emt 0:00:15]} Qd5 {[%emt 0:00:05]} 16. Rhe1 {[%emt 0:00:55]} Qb5 {[%emt 0:00:41]} 17. Qxb5 {[%emt 0:00:31]} cxb5 {[%emt 0:00:02]} 18. d5 {[%emt 0:00:04]} Bc5 {[%emt 0:01:58]} 19. dxe6 {[%emt 0:00:03]} fxe6 {[%emt 0:00:04]} 20. Bd6 {[%emt 0:00:29]} Bxd6 {[%emt 0:01:44]} 21. Rxd6 {[%emt 0:00:02]} Ng4 {[%emt 0:00:07]} 22. Rexe6 {[%emt 0:00:45]} Nxf2 {[%emt 0:01:51]} 23. Re7 {[%emt 0:00:34]} Rae8 {[%emt 0:00:40]} 24. Rxe8 {[%emt 0:00:43]} Rxe8 {[%emt 0:00:02]} 25. Rd7 {[%emt 0:00:26]} Re2 {[%emt 0:03:38]} 26. a3 {[%emt 0:01:34]} Ne4 {[%emt 0:01:31]} 27. Rxb7 {[%emt 0:00:57]} a6 {[%emt 0:00:19]} 28. Rb6 {[%emt 0:02:41]} Rxg2 {[%emt 0:00:03]} 29. Rxa6 {[%emt 0:00:09]} Rg4 {[%emt 0:00:02]} 30. Rb6 {[%emt 0:00:40]} Rf4 {[%emt 0:00:14]} 31. Ne5 {[%emt 0:00:06]} Rxh4 {[%emt 0:02:38]} 32. Rb8+ {[%emt 0:00:17]} Kh7 {[%emt 0:00:07]} 33. Rxb5 {[%emt 0:00:02]} g5 {[%emt 0:00:13]} 34. Rb4 {[%emt 0:01:55]} Rf4 {[%emt 0:00:29]} 35. Ka2 {[%emt 0:00:23]} h5 {[%emt 0:00:54]} 36. a4 {[%emt 0:02:07]} h4 {[%emt 0:02:58]} 37. Nd3 {[%emt 0:00:05]} Rg4 {[%emt 0:00:02]} 38. Ne5 {[%emt 0:00:09]} Rf4 {[%emt 0:00:01]} 39. Nd3 {[%emt 0:00:02]} Rg4 {[%emt 0:00:02]} 40. Ne5 {[%emt 0:00:15]} 1/2-1/2

[Event "Chinese League Div-A Rapid 2022"]
[Site "Fuling,Chongqing"]
[Date "2022.09.18"]
[Round "10.12"]
[White "Zhou, Weiqi"]
[Black "Chen, Qi b"]
[Result "1-0"]
[ECO "A13"]
[WhiteElo "2597"]
[BlackElo "2485"]
[Annotator "ChessBase"]
[PlyCount "77"]
[EventDate "2022.09.07"]
[EventType "team-tourn"]
[EventCountry "CHN"]
[SourceTitle "playchess.com"]
[Source "ChessBase"]
[SourceQuality "1"]
[TimeControl "1500+10"]

1. Nf3 {[%emt 0:00:02]} d5 {[%emt 0:00:02]} 2. e3 {[%emt 0:00:02]} Nf6 {[%emt 0:00:07]} 3. c4 {[%emt 0:00:03]} e6 {[%emt 0:00:09]} 4. b3 {[%emt 0:00:40]} b6 {[%emt 0:00:01]} 5. Bb2 {[%emt 0:00:24]} Bb7 {[%emt 0:00:07]} 6. Nc3 {[%emt 0:00:21]} Nbd7 {[%emt 0:00:04]} 7. cxd5 {[%emt 0:01:17]} exd5 {[%emt 0:00:01]} 8. d4 {[%emt 0:00:03]} a6 {[%emt 0:00:06]} 9. g3 {[%emt 0:00:03]} Bd6 {[%emt 0:00:04]} 10. Bg2 {[%emt 0:00:04]} Qe7 {[%emt 0:00:04]} 11. O-O {[%emt 0:00:10]} h5 {[%emt 0:00:44]} 12. Nh4 {[%emt 0:01:20]} g6 {[%emt 0:02:16]} 13. Qc2 {[%emt 0:00:03]} O-O-O {[%emt 0:00:11]} 14. Rfe1 {[%emt 0:00:44]} Ne4 {[%emt 0:01:02]} 15. Rac1 {[%emt 0:04:30]} Kb8 {[%emt 0:00:16]} 16. Ne2 {[%emt 0:05:29]} g5 {[%emt 0:04:15]} 17. Nf5 {[%emt 0:01:37]} Qe6 {[%emt 0:00:01]} 18. Nxd6 {[%emt 0:00:18]} Qxd6 {[%emt 0:00:03]} 19. f3 {[%emt 0:00:25]} Nef6 {[%emt 0:00:58]} 20. e4 {[%emt 0:00:01]} Ne8 {[%emt 0:00:14]} 21. e5 {[%emt 0:02:28]} Qe6 {[%emt 0:00:09]} 22. f4 {[%emt 0:00:07]} Qh6 {[%emt 0:01:56]} 23. Qf5 {[%emt 0:00:35]} Ng7 {[%emt 0:01:00]} 24. Qxg5 {[%emt 0:00:10]} Qh7 {[%emt 0:00:12]} 25. f5 {[%emt 0:00:45]} Nxf5 {[%emt 0:01:26]} 26. Rf1 {[%emt 0:00:02]} Nh6 {[%emt 0:00:01]} 27. Nf4 {[%emt 0:00:54]} h4 {[%emt 0:05:20]} 28. e6 {[%emt 0:00:50]} Rdg8 {[%emt 0:00:50]} 29. Qxh4 {[%emt 0:00:13]} fxe6 {[%emt 0:00:04]} 30. Nxe6 {[%emt 0:00:23]} Rg4 {[%emt 0:00:06]} 31. Qh5 {[%emt 0:00:32]} Qe7 {[%emt 0:01:24]} 32. Rce1 {[%emt 0:00:08]} Rgg8 {[%emt 0:01:52]} 33. Nc5 {[%emt 0:00:28]} Qg7 {[%emt 0:01:30]} 34. Nxb7 {[%emt 0:00:18]} Ng4 {[%emt 0:00:03]} 35. Qxd5 {[%emt 0:00:57]} Rxh2 {[%emt 0:00:04]} 36. Nd6 {[%emt 0:00:30]} Rxg2+ {[%emt 0:00:11]} 37. Kxg2 {[%emt 0:00:18]} cxd6 {[%emt 0:00:13]} 38. Qxd6+ {[%emt 0:00:30]} Ka7 {[%emt 0:00:08]} 39. Re7 {[%emt 0:00:18]} 1-0

[Event "Chinese League Div-A Rapid 2022"]
[Site "Fuling,Chongqing"]
[Date "2022.09.18"]
[Round "10.13"]
[White "Lin, Yi"]
[Black "Xu, Jun"]
[Result "1-0"]
[ECO "A60"]
[WhiteElo "2394"]
[BlackElo "2474"]
[Annotator "ChessBase"]
[PlyCount "151"]
[EventDate "2022.09.07"]
[EventType "team-tourn"]
[EventCountry "CHN"]
[SourceTitle "playchess.com"]
[Source "ChessBase"]
[SourceQuality "1"]
[TimeControl "1500+10"]

1. d4 {[%emt 0:00:02]} Nf6 {[%emt 0:00:02]} 2. c4 {[%emt 0:00:02]} e6 {[%emt 0:00:02]} 3. g3 {[%emt 0:00:05]} c5 {[%emt 0:00:01]} 4. d5 {[%emt 0:00:08]} exd5 {[%emt 0:00:01]} 5. cxd5 {[%emt 0:00:02]} b5 {[%emt 0:00:01]} 6. Nf3 {[%emt 0:00:04]} Bb7 {[%emt 0:00:22]} 7. e4 {[%emt 0:00:05]} Nxe4 {[%emt 0:00:11]} 8. Bg2 {[%emt 0:00:02]} Be7 {[%emt 0:00:38]} 9. O-O {[%emt 0:00:04]} O-O {[%emt 0:00:02]} 10. Re1 {[%emt 0:00:02]} Nd6 {[%emt 0:00:02]} 11. Bf4 {[%emt 0:00:05]} Na6 {[%emt 0:02:11]} 12. Nc3 {[%emt 0:00:06]} b4 {[%emt 0:00:38]} 13. Na4 {[%emt 0:01:08]} Nc8 {[%emt 0:04:23]} 14. Ne5 {[%emt 0:06:00]} d6 {[%emt 0:01:20]} 15. Nc6 {[%emt 0:00:36]} Bxc6 {[%emt 0:00:02]} 16. dxc6 {[%emt 0:00:02]} Nc7 {[%emt 0:00:06]} 17. Nxc5 {[%emt 0:01:28]} dxc5 {[%emt 0:00:52]} 18. Qd7 {[%emt 0:00:02]} Nb5 {[%emt 0:05:29]} 19. Rad1 {[%emt 0:04:42]} a6 {[%emt 0:02:47]} 20. Qxd8 {[%emt 0:05:09]} Bxd8 {[%emt 0:00:06]} 21. c7 {[%emt 0:00:02]} Bxc7 {[%emt 0:00:41]} 22. Bxa8 {[%emt 0:00:04]} Bxf4 {[%emt 0:00:01]} 23. gxf4 {[%emt 0:00:01]} Ncd6 {[%emt 0:03:07]} 24. Bc6 {[%emt 0:01:56]} Nd4 {[%emt 0:00:24]} 25. Re5 {[%emt 0:02:14]} Rc8 {[%emt 0:02:36]} 26. Rxc5 {[%emt 0:02:17]} N6f5 {[%emt 0:00:20]} 27. Re1 {[%emt 0:00:04]} Nd6 {[%emt 0:01:15]} 28. Rd5 {[%emt 0:01:25]} Nf3+ {[%emt 0:00:14]} 29. Kf1 {[%emt 0:00:02]} Nxe1 {[%emt 0:00:02]} 30. Rxd6 {[%emt 0:00:02]} Nc2 {[%emt 0:00:11]} 31. Bb7 {[%emt 0:00:35]} Rb8 {[%emt 0:00:28]} 32. Rxa6 {[%emt 0:00:05]} Kf8 {[%emt 0:00:22]} 33. Ra8 {[%emt 0:00:11]} Rxa8 {[%emt 0:00:06]} 34. Bxa8 {[%emt 0:00:01]} Nd4 {[%emt 0:00:11]} 35. Bd5 {[%emt 0:00:43]} Ke7 {[%emt 0:00:03]} 36. a3 {[%emt 0:00:04]} bxa3 {[%emt 0:00:08]} 37. bxa3 {[%emt 0:00:01]} f6 {[%emt 0:00:05]} 38. Bc4 {[%emt 0:00:46]} Kd6 {[%emt 0:00:07]} 39. Bd3 {[%emt 0:00:13]} Ne6 {[%emt 0:00:24]} 40. f5 {[%emt 0:00:27]} Nc5 {[%emt 0:00:02]} 41. Bc2 {[%emt 0:00:12]} Kd5 {[%emt 0:00:06]} 42. Ke2 {[%emt 0:00:08]} Kd4 {[%emt 0:00:07]} 43. Kd2 {[%emt 0:00:02]} Kc4 {[%emt 0:00:08]} 44. Bd1 {[%emt 0:00:20]} Ne4+ {[%emt 0:00:07]} 45. Ke3 {[%emt 0:00:01]} Nd6 {[%emt 0:00:09]} 46. Kf4 {[%emt 0:00:18]} Kc3 {[%emt 0:00:09]} 47. a4 {[%emt 0:00:22]} Kb4 {[%emt 0:00:06]} 48. Bc2 {[%emt 0:00:01]} Kc3 {[%emt 0:00:15]} 49. Be4 {[%emt 0:00:06]} Kb4 {[%emt 0:00:22]} 50. Bc6 {[%emt 0:00:01]} Kc5 {[%emt 0:00:06]} 51. Bd7 {[%emt 0:00:01]} Kb4 {[%emt 0:00:04]} 52. Ke3 {[%emt 0:00:06]} Kc5 {[%emt 0:00:06]} 53. Kd3 {[%emt 0:00:09]} Nc4 {[%emt 0:00:02]} 54. Ke4 {[%emt 0:00:51]} Nd6+ {[%emt 0:00:03]} 55. Ke3 {[%emt 0:00:11]} Nc4+ {[%emt 0:00:04]} 56. Kf4 {[%emt 0:00:01]} Nd6 {[%emt 0:00:01]} 57. h3 {[%emt 0:00:03]} Kb4 {[%emt 0:00:06]} 58. Ke3 {[%emt 0:00:01]} Kc5 {[%emt 0:00:01]} 59. Kd3 {[%emt 0:00:02]} Nc4 {[%emt 0:00:03]} 60. Be8 {[%emt 0:00:24]} Nd6 {[%emt 0:00:06]} 61. Bd7 {[%emt 0:00:04]} Nc4 {[%emt 0:00:02]} 62. Ke4 {[%emt 0:00:06]} Nd6+ {[%emt 0:00:19]} 63. Kf4 {[%emt 0:00:01]} Kb4 {[%emt 0:00:07]} 64. h4 {[%emt 0:00:03]} Kc5 {[%emt 0:00:08]} 65. a5 {[%emt 0:00:18]} Nc4 {[%emt 0:00:11]} 66. a6 {[%emt 0:00:20]} Kb6 {[%emt 0:00:01]} 67. Be6 {[%emt 0:00:28]} Nd6 {[%emt 0:00:11]} 68. Bg8 {[%emt 0:00:02]} Kxa6 {[%emt 0:00:34]} 69. Bxh7 {[%emt 0:00:01]} Kb6 {[%emt 0:00:04]} 70. Kg4 {[%emt 0:00:07]} Nf7 {[%emt 0:00:26]} 71. Bg6 {[%emt 0:00:07]} Nh8 {[%emt 0:00:05]} 72. h5 {[%emt 0:00:13]} Kc7 {[%emt 0:00:03]} 73. h6 {[%emt 0:00:04]} gxh6 {[%emt 0:00:02]} 74. Kh5 {[%emt 0:00:01]} Kd6 {[%emt 0:00:31]} 75. Kxh6 {[%emt 0:00:02]} Ke7 {[%emt 0:00:22]} 76. Kg7 {[%emt 0:00:03]} 1-0